fUST/lending_fUST_20260101
["ID","MTS","AMOUNT","RATE_DAILY","PERIOD"]
[400276140,1767251438469,-150.39445871,0.00010685,2]
[400276141,1767251438479,-150.0,0.00010685,2]
[400276142,1767251438488,-250.0,0.00010781,2]
[400276143,1767251438498,-250.0,0.00010781,2]
[400276144,1767251438508,-250.0,0.00010784,2]
[400276145,1767251438517,-206.56,0.000108,2]
[400276146,1767251438527,-150.0,0.00010822,2]
[400276147,1767251438536,-150.0,0.00010822,2]
[400276148,1767251438548,-215.28294886,0.00010822,2]
[400276149,1767251438558,-2242.13,0.00010859,2]
[400276150,1767251438567,-41907.4896447,0.00010926,2]
[400276151,1767251438578,-684.7229129,0.00010959,2]
[400276152,1767251438587,-201.0951248,0.00010959,2]
[400276153,1767251438597,-224.93036213,0.00010959,2]
[400276154,1767251438607,-500.0,0.00010959,2]
[400276155,1767251438616,-500.0,0.00010959,2]
[400276156,1767251438626,-500.0,0.00010959,2]
[400276157,1767251438635,-500.0,0.00010959,2]
[400276158,1767251438644,-500.0,0.00010959,2]
[400276159,1767251438653,-500.0,0.00010959,2]
[400276160,1767251438662,-500.0,0.00010959,2]
[400276161,1767251438672,-518.0008548,0.00010959,2]
[400276162,1767251438681,-206.56,0.00011,2]
[400276163,1767251438691,-420.0,0.00011183,2]
[400276164,1767251438700,-150.0,0.00011651,2]
[400276165,1767251438709,-1763.0824,0.00011937,2]
[400276166,1767251438719,-242.76905566,0.00012269,2]
[400276167,1767251438728,-587.0,0.00012299,2]
[400276168,1767251438737,-1761.34,0.00012329,2]
[400276169,1767251438747,-1467.78,0.00012329,2]
[400276170,1767251438757,-1223.15,0.00012329,2]
[400276171,1767251438766,-1019.29,0.00012329,2]
[400276172,1767251438776,-849.41,0.00012329,2]
[400276173,1767251438785,-707.84,0.00012329,2]
[400276174,1767251438795,-589.87,0.00012329,2]
[400276175,1767251438805,-491.56,0.00012329,2]
[400276176,1767251438818,-409.63,0.00012329,2]
[400276177,1767251438827,-341.36,0.00012329,2]
[400276178,1767251438836,-284.46,0.00012329,2]
[400276179,1767251438846,-237.05,0.00012329,2]
[400276180,1767251438856,-197.55,0.00012329,2]
[400276181,1767251438866,-164.62,0.00012329,2]
[400276182,1767251438876,-823.13,0.00012329,2]
[400276183,1767251438885,-264.63,0.0001271,2]
[400276184,1767251438897,-507.3066774,0.00012742,2]
[400276185,1767251438907,-500.0,0.00013273,2]
[400276186,1767251438916,-500.0,0.00013273,2]
[400276187,1767251438926,-500.0,0.00013273,2]
[400276188,1767251438935,-497.57485249,0.00013273,2]
[400276189,1767251438945,-500.0,0.00013273,2]
[400276190,1767251438955,-500.0,0.00013273,2]
[400276191,1767251438964,-510.90139551,0.00013273,2]
[400276192,1767251438973,-500.0,0.00013273,2]
[400276193,1767251438983,-500.0,0.00013273,2]
[400276194,1767251438993,-500.0,0.00013273,2]
[400276195,1767251439003,-500.0,0.00013273,2]
[400276196,1767251439013,-500.0,0.00013273,2]
[400276197,1767251439023,-303.48839613,0.00013273,2]
[400276198,1767251439033,-150.19564112,0.00013273,2]
[400276199,1767251439043,-500.0,0.00013273,2]
[400276200,1767251439053,-204.97300329,0.00013273,2]
[400276201,1767251439063,-199.13796001,0.00013273,2]
[400276202,1767251439073,-500.0,0.00013273,2]
[400276203,1767251439083,-4777.43011459,0.00013303,2]
[400276204,1767251439093,-250.0,0.00013303,2]
[400276205,1767251439103,-250.0,0.00013303,2]
[400276206,1767251439113,-250.0,0.00013303,2]
[400276207,1767251439123,-250.0,0.00013303,2]
[400276208,1767251439133,-250.0,0.00013303,2]
[400276209,1767251439142,-250.0,0.00013303,2]
[400276210,1767251439151,-250.0,0.00013303,2]
[400276211,1767251439161,-250.0,0.00013303,2]
[400276212,1767251439171,-250.0,0.00013303,2]
[400276213,1767251439180,-250.0,0.00013303,2]
[400276214,1767251439190,-250.0,0.00013303,2]
[400276215,1767251439199,-250.0,0.00013303,2]
[400276216,1767251439208,-250.0,0.00013435,2]
[400276217,1767251439218,-555.0,0.00013527,2]
[400276218,1767251439227,-1682.55469545,0.0001354,2]
[400276219,1767251439236,-300.0,0.00013673,2]
[400276220,1767251439246,-582.30404194,0.00013698,2]
[400276221,1767251439256,-500.0,0.00013698,2]
[400276222,1767251439265,-500.0,0.00013698,2]
[400276223,1767251439274,-500.0,0.00013698,2]
[400276224,1767251439283,-500.0,0.00013698,2]
[400276225,1767251439293,-501.34554409,0.00013698,2]
[400276226,1767251439302,-500.0,0.00013698,2]
[400276227,1767251439312,-530.23109502,0.00013698,2]
[400276228,1767251439322,-634.29682706,0.00013698,2]
[400276229,1767251439331,-500.0,0.00013698,2]
[400276230,1767251439340,-500.0,0.00013698,2]
[400276231,1767251439350,-500.0,0.00013698,2]
[400276232,1767251439359,-500.0,0.00013698,2]
[400276233,1767251439368,-500.0,0.00013698,2]
[400276234,1767251439377,-500.0,0.00013698,2]
[400276235,1767251439387,-294.49990003,0.00013698,2]
[400276236,1767251439397,-889.880951,0.00013699,2]
[400276237,1767251439406,-159.77203792,0.00013699,2]
[400276238,1767251439417,-457.22674749,0.00013699,2]
[400276239,1767251439427,-500.0,0.00013699,2]
[400276240,1767251439436,-500.87963329,0.00013699,2]
[400276241,1767251439445,-500.0,0.00013699,2]
[400276242,1767251439455,-501.33800671,0.00013699,2]
[400276243,1767251439464,-500.0,0.00013699,2]
[400276244,1767251439473,-500.27689491,0.00013699,2]
[400276245,1767251439483,-500.0,0.00013699,2]
[400276246,1767251439493,-500.0,0.00013699,2]
[400276247,1767251439502,-501.57657617,0.00013699,2]
[400276248,1767251439512,-500.0,0.00013699,2]
[400276249,1767251439521,-150.0,0.00013699,2]
[400276250,1767251439531,-158.33594106,0.00013699,2]
[400276251,1767251439541,-500.0,0.00013699,2]
[400276252,1767251439551,-500.0,0.00013699,2]
[400276253,1767251439560,-500.0,0.00013699,2]
[400276254,1767251439570,-500.0,0.00013699,2]
[400276255,1767251439579,-500.0,0.00013699,2]
[400276256,1767251439590,-504.76855077,0.00013699,2]
[400276257,1767251439599,-500.0,0.00013699,2]
[400276258,1767251439609,-500.0,0.00013699,2]
[400276259,1767251439618,-500.0,0.00013699,2]
[400276260,1767251439628,-500.41254196,0.00013699,2]
[400276261,1767251439638,-500.0,0.00013699,2]
[400276262,1767251439648,-500.0867866,0.00013699,2]
[400276263,1767251439657,-500.50269191,0.00013699,2]
[400276264,1767251439667,-500.0,0.00013699,2]
[400276265,1767251439676,-500.0,0.00013699,2]
[400276266,1767251439686,-500.0,0.00013699,2]
[400276267,1767251439696,-251.00272433,0.00013699,2]
[400276268,1767251439705,-500.0,0.00013699,2]
[400276269,1767251439714,-226.86184291,0.00013699,2]
[400276270,1767251439724,-340.15657069,0.00013699,2]
[400276271,1767251439733,-500.0,0.00013699,2]
[400276272,1767251439743,-500.95516799,0.00013699,2]
[400276273,1767251439752,-501.3582173,0.00013699,2]
[400276274,1767251439762,-500.96605192,0.00013699,2]
[400276275,1767251439771,-502.90555737,0.00013699,2]
[400276276,1767251439780,-383.99222334,0.00013699,2]
[400276277,1767251439789,-534.87876427,0.00013699,2]
[400276278,1767251439799,-501.34213841,0.00013699,2]
[400276279,1767251439808,-500.79513169,0.00013699,2]
[400276280,1767251439822,-524.82836698,0.00013699,2]
[400276281,1767251439831,-500.17833478,0.00013699,2]
[400276282,1767251439841,-316.4851046,0.00013699,2]
[400276283,1767251439850,-500.0,0.00013699,2]
[400276284,1767251439860,-500.49764939,0.00013699,2]
[400276285,1767251439870,-373.28262423,0.00013699,2]
[400276286,1767251439879,-500.86510493,0.00013699,2]
[400276287,1767251439899,-500.40244192,0.00013699,2]
[400276288,1767251439909,-396.95,0.00013769,2]
[400276289,1767251439919,-527.43501459,0.00013821,2]
[400276291,1767251439928,-1000.0,0.00013821,2]
[400276292,1767251439937,-507.02514153,0.00013821,2]
[400276293,1767251439947,-1000.0,0.00013821,2]
[400276294,1767251439956,-1000.0,0.00013821,2]
[400276295,1767251439965,-1000.0,0.00013821,2]
[400276296,1767251439974,-987.40538387,0.00013821,2]
[400276297,1767251439983,-1000.0,0.00013821,2]
[400276298,1767251439993,-1000.0,0.00013821,2]
[400276299,1767251440003,-704.62025584,0.00013821,2]
[400276300,1767251440012,-310.3725378,0.00013821,2]
[400276301,1767251440021,-867.16101561,0.00013821,2]
[400276302,1767251440030,-600.0,0.00014221,2]
[400276303,1767251440040,-1001.84835347,0.00014247,2]
[400276304,1767251440049,-1100.08232842,0.00014247,2]
[400276305,1767251440058,-198.34157968,0.00014247,2]
[400276306,1767251440068,-1000.0,0.00014247,2]
[400276307,1767251440077,-502.44886287,0.00014247,2]
[400276308,1767251440087,-1000.0,0.00014247,2]
[400276310,1767251440096,-400.0,0.00014247,2]
[400276311,1767251440106,-1004.37283025,0.00014247,2]
[400276312,1767251440115,-1082.59288447,0.00014247,2]
[400276313,1767251440124,-1001.95418441,0.00014247,2]
[400276314,1767251440134,-1000.0,0.00014247,2]
[400276315,1767251440143,-160.44722878,0.00014247,2]
[400276316,1767251440153,-602.586313,0.00014247,2]
[400276317,1767251440162,-1005.26747214,0.00014247,2]
[400276318,1767251440171,-1000.0,0.00014247,2]
[400276319,1767251440180,-279.80162348,0.00014269,2]
[400276320,1767251440189,-1501.39987686,0.00014368,2]
[400276321,1767251440199,-470.75353878,0.00014368,2]
[400276322,1767251440208,-218.67284669,0.00014368,2]
[400276323,1767251440217,-387.84322362,0.00014368,2]
[400276324,1767251440227,-1500.0,0.00014368,2]
[400276325,1767251440236,-1629.14531311,0.00014368,2]
[400276326,1767251440245,-529.27,0.00014747,2]
[400276327,1767251440254,-300.0,0.00014768,2]
[400276328,1767251440263,-500.0,0.00014795,2]
[400276329,1767251440273,-1000.0,0.00014795,2]
[400276330,1767251440283,-501.18575005,0.00014795,2]
[400276331,1767251440292,-1042.69681858,0.00014795,2]
[400276332,1767251440302,-52998.81271165,0.00014882,2]
[400276333,1767251440312,-1506.13602634,0.00014916,2]
[400276334,1767251440321,-1000.0,0.000154,2]
[400276335,1767251440331,-292.5917184,0.00015753,2]
[400276336,1767251440340,-215.32515144,0.00015753,2]
[400276337,1767251440350,-292.39416124,0.00015753,2]
[400276338,1767251440359,-661.59,0.000158,2]
[400276339,1767251440369,-151.0,0.000161,2]
[400276340,1767251440378,-316.83419129,0.00016269,2]
[400276341,1767251440388,-151.0,0.000169,2]
[400276342,1767251440398,-1078.45274953,0.00016928,2]
[400276343,1767251440407,-793.9,0.00016959,2]
[400276344,1767251440416,-151.0,0.000176,2]
[400276346,1767251440550,-215.32515144,0.00017619,2]
[400276347,1767251440559,-926.22,0.00018019,2]
[400276348,1767251440569,-1041.66666667,0.00018089,2]
[400276349,1767251440578,-353.8667591,0.00018269,2]
[400276350,1767251440588,-1058.54,0.00019078,2]
[400276351,1767251440597,-796.7,0.00019178,2]
[400276352,1767251440607,-796.7,0.00019178,2]
[400276353,1767251440616,-796.7,0.00019178,2]
[400276354,1767251440624,-796.7,0.00019178,2]
[400276355,1767251440634,-796.7,0.00019178,2]
[400276356,1767251440643,-796.7,0.00019178,2]
[400276357,1767251440652,-796.7,0.00019178,2]
[400276358,1767251440662,-796.7,0.00019178,2]
[400276359,1767251440671,-796.7,0.00019178,2]
[400276360,1767251440680,-796.7,0.00019178,2]
[400276361,1767251440689,-796.7,0.00019178,2]
[400276362,1767251440698,-796.7,0.00019178,2]
[400276363,1767251440708,-796.7,0.00019178,2]
[400276364,1767251440717,-796.7,0.00019178,2]
[400276365,1767251440727,-796.7,0.00019178,2]
[400276366,1767251440736,-796.7,0.00019178,2]
[400276367,1767251440745,-796.7,0.00019178,2]
[400276368,1767251440755,-796.7,0.00019178,2]
[400276369,1767251440763,-796.7,0.00019178,2]
[400276370,1767251440773,-796.7,0.00019178,2]
[400276371,1767251440782,-796.7,0.00019178,2]
[400276372,1767251440791,-796.7,0.00019178,2]
[400276373,1767251440801,-796.7,0.00019178,2]
[400276374,1767251440811,-796.90033187,0.00019178,2]
[400276375,1767251440824,-166.35,0.000192,2]
[400276376,1767251440834,-6304.75,0.000192,2]
[400276377,1767251440843,-159.25,0.000193,2]
[400276378,1767251440853,-292.5917184,0.00019484,2]
[400276379,1767251440862,-215.32515144,0.00019484,2]
[400276380,1767251440872,-292.39416124,0.00019484,2]
[400276381,1767251440881,-1190.86,0.00020138,2]
[400276382,1767251440890,-889.880951,0.00020187,2]
[400276383,1767251440902,-390.89932692,0.00020269,2]
[400276384,1767251440911,-3000.0,0.00021,2]
[400276385,1767251440921,-3000.0,0.0002101,2]
[400276386,1767251440931,-3000.0,0.0002102,2]
[400276387,1767251440940,-3000.0,0.0002103,2]
[400276388,1767251440949,-3000.0,0.0002104,2]
[400276389,1767251440959,-3000.0,0.0002105,2]
[400276390,1767251440968,-3000.0,0.0002106,2]
[400276391,1767251440978,-3000.0,0.0002107,2]
[400276392,1767251440988,-3000.0,0.0002108,2]
[400276393,1767251440997,-3000.0,0.0002109,2]
[400276394,1767251441007,-3000.0,0.000211,2]
[400276395,1767251441017,-3000.0,0.0002111,2]
[400276396,1767251441027,-3000.0,0.0002112,2]
[400276397,1767251441037,-3000.0,0.0002113,2]
[400276398,1767251441046,-3000.0,0.0002114,2]
[400276399,1767251441055,-3000.0,0.0002115,2]
[400276400,1767251441065,-3000.0,0.0002116,2]
[400276401,1767251441075,-5121.726876,0.0002117,2]
[400276402,1767251441084,-1323.17,0.00021198,2]
[400276403,1767251441093,-215.32515144,0.0002135,2]
[400276404,1767251441102,-182.56718446,0.00021753,5]
[400276405,1767251441112,-452.48670495,0.00021917,2]
[400276406,1767251441122,-459.76933981,0.00021917,2]
[400276407,1767251441131,-249.54861741,0.00021917,2]
[400276408,1767251441140,-463.59663672,0.00021917,2]
[400276409,1767251441149,-248.06564234,0.00021917,2]
[400276410,1767251441159,-492.64591151,0.00021917,2]
[400276411,1767251441168,-504.04792974,0.00021917,2]
[400276412,1767251441177,-500.80685371,0.00021917,2]
[400276413,1767251441187,-184.52928121,0.00021917,2]
[400276414,1767251441196,-179.05199102,0.00021917,2]
[400276415,1767251441206,-371.28066561,0.00021917,2]
[400276416,1767251441215,-493.13106988,0.00021917,2]
[400276417,1767251441224,-275.89894745,0.00021917,2]
[400276418,1767251441233,-501.87004615,0.00021917,2]
[400276419,1767251441243,-401.13092811,0.00021917,2]
[400276420,1767251441253,-408.88764629,0.00021917,2]
[400276421,1767251441262,-523.31407645,0.00021917,2]
[400276422,1767251441271,-280.51078122,0.00021917,2]
[400276423,1767251441281,-518.30497019,0.00021917,2]
[400276424,1767251441290,-568.74908279,0.00021917,2]
[400276425,1767251441299,-516.60053406,0.00021917,2]
[400276426,1767251441309,-272.63568272,0.00021917,2]
[400276427,1767251441319,-552.4053218,0.00021917,2]
[400276428,1767251441328,-502.87281285,0.00021917,2]
[400276429,1767251441337,-529.9751576,0.00021917,2]
[400276430,1767251441347,-497.44272827,0.00021917,2]
[400276431,1767251441356,-518.4359387,0.00021917,2]
[400276432,1767251441365,-458.34960511,0.00021917,2]
[400276433,1767251441374,-475.26860085,0.00021917,2]
[400276434,1767251441383,-240.60935037,0.00021917,2]
[400276435,1767251441393,-486.85895682,0.00021917,2]
[400276436,1767251441402,-338.54047135,0.00021917,2]
[400276437,1767251441412,-297.21992504,0.00021917,2]
[400276438,1767251441421,-500.0,0.00021917,2]
[400276439,1767251441431,-554.27993055,0.00021917,2]
[400276440,1767251441441,-500.0,0.00021917,2]
[400276441,1767251441451,-301.35369141,0.00021917,2]
[400276442,1767251441460,-500.0,0.00021917,2]
[400276443,1767251441469,-318.08002056,0.00021917,2]
[400276444,1767251441478,-160.09792167,0.00021917,2]
[400276445,1767251441488,-495.66542873,0.00021917,2]
[400276446,1767251441498,-273.58985288,0.00021917,2]
[400276447,1767251441507,-153.64364551,0.00021917,2]
[400276448,1767251441516,-285.61588297,0.00021917,2]
[400276449,1767251441526,-251.6135754,0.00021917,2]
[400276450,1767251441535,-500.0,0.00021917,2]
[400276451,1767251441545,-396.59409814,0.00021917,2]
[400276452,1767251441555,-242.63416874,0.00021917,2]
[400276453,1767251441564,-248.32454399,0.00021917,2]
[400276454,1767251441573,-187.13995888,0.00021917,2]
[400276455,1767251441583,-500.0,0.00021917,2]
[400276456,1767251441593,-500.70495585,0.00021917,2]
[400276457,1767251441602,-260.47739591,0.00021917,2]
[400276458,1767251441611,-500.0,0.00021917,2]
[400276459,1767251441621,-350.29751082,0.00021917,2]
[400276460,1767251441630,-154.69,0.00022,7]
[400276461,1767251441639,-380.32,0.00022,2]
[400276462,1767251441649,-510.76405054,0.00022191,2]
[400276463,1767251441659,-500.0,0.00022191,2]
[400276464,1767251441668,-500.0,0.00022191,2]
[400276465,1767251441678,-180.94572281,0.00022191,2]
[400276466,1767251441687,-427.93189473,0.00022269,2]
[400276467,1767251441696,-500.0,0.00022465,2]
[400276468,1767251441706,-500.0,0.00022465,2]
[400276469,1767251441716,-500.0,0.00022739,2]
[400276470,1767251441725,-502.95914961,0.00022739,2]
[400276471,1767251441735,-292.88431012,0.00023216,2]
[400276472,1767251441744,-215.54047659,0.00023216,2]
[400276473,1767251441754,-292.6865554,0.00023216,2]
[400276474,1767251441763,-1078.45274953,0.00023585,2]
[400276475,1767251441773,-170.0,0.00023945,11]
[400276476,1767251441783,-307.47159937,0.00024191,2]
[400276477,1767251441792,-464.96446254,0.00024269,2]
[400276478,1767251441801,-6304.75,0.000243,2]
[400276479,1767251441812,-307.47159937,0.00024337,4]
[400276480,1767251441824,-307.47159937,0.00024482,6]
[400276481,1767251441833,-307.47159937,0.00024628,8]
[400276482,1767251441843,-380.0,0.00024658,2]
[400276483,1767251441852,-307.47159937,0.00024773,10]
[400276484,1767251441862,-152.81821811,0.000249,2]
[400276485,1767251441871,-152.81821803,0.000249,2]
[400276486,1767251441881,-307.47159937,0.00024919,12]
[400276487,1767251441890,-152.81821803,0.00025062,2]
[400276488,1767251441900,-307.47159937,0.00025064,14]
[400276489,1767251441910,-307.47159937,0.0002521,16]
[400276490,1767251441919,-307.47159937,0.00025355,18]
[400276491,1767251441929,-307.47159937,0.00025501,20]
[400276492,1767251441938,-307.47159937,0.00025646,22]
[400276493,1767251441947,-307.47159937,0.00025792,24]
[400276494,1767251441957,-307.47159937,0.00025937,26]
[400276495,1767251441967,-1200.0,0.00026075,7]
[400276496,1767251441976,-307.47159937,0.00026083,28]
[400276497,1767251441985,-307.47159937,0.00026228,30]
[400276498,1767251441995,-501.99703036,0.00026269,2]
[400276499,1767251442004,-274.80124425,0.00026288,7]
[400276500,1767251442013,-1200.0,0.00026656,7]
[400276501,1767251442022,-889.880951,0.00026676,2]
[400276502,1767251442032,-188.0,0.00026685,21]
[400276503,1767251442041,-500.0,0.00026897,7]
[400276504,1767251442051,-152.81821803,0.00027035,2]
[400276505,1767251442060,-1200.0,0.00027132,7]
[400276506,1767251442070,-2000.0,0.00027386,7]
[400276507,1767251442079,-150.0,0.00027397,5]
[400276508,1767251442089,-6304.75,0.000274,2]
[400276509,1767251442098,-1200.0,0.00027509,7]
[400276510,1767251442108,-1200.0,0.00027526,7]
[400276511,1767251442117,-1200.0,0.00027567,7]
[400276512,1767251442127,-1200.0,0.00027685,7]
[400276513,1767251442136,-250.0,0.00027945,5]
[400276514,1767251442146,-539.02959817,0.00028269,2]
[400276515,1767251442155,-2000.0,0.00028368,7]
[400276516,1767251442164,-2000.0,0.00028377,7]
[400276517,1767251442173,-2000.0,0.00028386,7]
[400276518,1767251442183,-2000.0,0.00028394,7]
[400276519,1767251442192,-2000.0,0.00028403,7]
[400276520,1767251442201,-2000.0,0.00028412,7]
[400276521,1767251442211,-2000.0,0.00028421,7]
[400276522,1767251442220,-2000.0,0.0002843,7]
[400276523,1767251442230,-2000.0,0.00028438,7]
[400276524,1767251442239,-1200.0,0.00028443,7]
[400276525,1767251442248,-2000.0,0.00028447,7]
[400276526,1767251442258,-2000.0,0.00028456,7]
[400276527,1767251442267,-2000.0,0.00028465,7]
[400276528,1767251442276,-2000.0,0.00028474,7]
[400276529,1767251442286,-2000.0,0.00028482,7]
[400276530,1767251442296,-2000.0,0.00028491,7]
[400276531,1767251442305,-350.0,0.00028493,5]
[400276532,1767251442314,-1200.0,0.00028499,7]
[400276533,1767251442324,-2000.0,0.000285,7]
[400276534,1767251442333,-1997.57396137,0.000285,7]
[400276535,1767251442343,-500.0,0.00028579,7]
[400276536,1767251442354,-1200.0,0.00028734,7]
[400276537,1767251442363,-2971.13,0.000288,2]
[400276538,1767251442372,-2971.13,0.000288,2]
[400276539,1767251442382,-500.0,0.00028806,7]
[400276540,1767251442392,-2971.13,0.000289,2]
[400276541,1767251442401,-2971.13,0.000289,2]
[400276542,1767251442410,-160.0,0.00029,5]
[400276543,1767251442420,-2971.13,0.00029,2]
[400276544,1767251442429,-152.81821803,0.00029008,2]
[400276545,1767251442438,-450.0,0.00029041,5]
[400276546,1767251442447,-2971.13,0.000291,2]
[400276547,1767251442457,-2971.13,0.000291,2]
[400276548,1767251442466,-1200.0,0.00029119,7]
[400276549,1767251442475,-1200.0,0.00029195,7]
[400276550,1767251442485,-2971.13,0.000292,2]
[400276551,1767251442494,-2971.13,0.000292,2]
[400276552,1767251442503,-1200.0,0.00029253,7]
[400276553,1767251442512,-1200.0,0.00029296,7]
[400276554,1767251442522,-2971.13,0.000293,2]
[400276555,1767251442532,-1200.0,0.00029349,7]
[400276556,1767251442541,-159.25,0.000294,14]
[400276557,1767251442551,-154.69,0.000294,7]
[400276558,1767251442560,-2971.13,0.000294,2]
[400276559,1767251442570,-2971.13,0.000294,2]
[400276560,1767251442579,-175.0,0.00029425,34]
[400276561,1767251442588,-2971.13,0.000295,2]
[400276562,1767251442598,-2971.13,0.000295,2]
[400276563,1767251442607,-500.0,0.00029543,7]
[400276564,1767251442617,-365.55215583,0.00029589,5]
[400276565,1767251442627,-2971.13,0.000296,2]
[400276566,1767251442636,-2971.13,0.000296,2]
[400276568,1767251442646,-2971.13,0.000297,2]
[400276569,1767251442655,-2971.13,0.000298,2]
[400276572,1767251442664,-2971.13,0.000298,2]
[400276574,1767251442674,-188.11386458,0.00029821,4]
[400276575,1767251442684,-1200.0,0.00029898,7]
[400276577,1767251442693,-2971.13,0.000299,2]
[400276578,1767251442703,-2971.13,0.000299,2]
[400276579,1767251442712,-2000.0,0.00029909,7]
[400276580,1767251442721,-159.4798357,0.0003,9]
[400276581,1767251442730,-20999.99999901,0.0003,7]
[400276582,1767251442740,-163.0,0.0003,14]
[400276583,1767251442749,-2971.13,0.0003,2]
[400276584,1767251442759,-2971.13,0.000301,2]
[400276585,1767251442768,-2971.13,0.000301,2]
[400276586,1767251442777,-2971.13,0.000302,2]
[400276587,1767251442787,-2971.13,0.000302,2]
[400276588,1767251442891,-1078.45274953,0.00030243,2]
[400276589,1767251442902,-576.06216598,0.00030269,2]
[400276590,1767251442912,-1200.0,0.00030285,7]
[400276591,1767251442922,-2971.13,0.000303,2]
[400276592,1767251442931,-500.0,0.0003036,7]
[400276593,1767251442941,-1200.0,0.00030391,7]
[400276594,1767251442950,-2971.13,0.000304,2]
[400276595,1767251442959,-2971.13,0.000304,2]
[400276596,1767251442969,-151.0,0.00030412,4]
[400276597,1767251442978,-2971.13,0.000305,2]
[400276598,1767251442988,-2971.13,0.000305,2]
[400276599,1767251442997,-1200.0,0.00030555,7]
[400276600,1767251443007,-6304.75,0.000306,2]
[400276601,1767251443016,-2971.13,0.000306,2]
[400276602,1767251443026,-2971.13,0.000306,2]
[400276603,1767251443035,-1200.0,0.00030621,7]
[400276604,1767251443044,-1200.0,0.00030697,7]
[400276605,1767251443054,-526.8,0.00030958,30]
[400276606,1767251443063,-152.81821803,0.00030981,2]
[400276607,1767251443073,-200.80728227,0.00031,120]
[400276608,1767251443082,-161.57990308,0.00031,120]
[400276609,1767251443092,-184.3824898,0.00031,120]
[400276610,1767251443101,-181.86492436,0.00031,120]
[400276611,1767251443110,-163.54107835,0.00031,120]
[400276612,1767251443119,-208.62713506,0.00031,120]
[400276613,1767251443129,-182.69083928,0.00031,120]
[400276614,1767251443138,-194.43091559,0.00031,120]
[400276615,1767251443147,-1913.60579622,0.00031,120]
[400276616,1767251443157,-161.34008523,0.00031,120]
[400276617,1767251443166,-175.34818034,0.00031,120]
[400276618,1767251443175,-180.65011172,0.00031,120]
[400276619,1767251443184,-183.53194587,0.00031,120]
[400276620,1767251443193,-162.59864532,0.00031,120]
[400276621,1767251443202,-183.86417209,0.00031,120]
[400276622,1767251443211,-500.0,0.0003137,7]
[400276623,1767251443220,-526.8,0.00031506,31]
[400276624,1767251443231,-263.8553107,0.00031506,120]
[400276625,1767251443240,-1200.0,0.00031592,7]
[400276626,1767251443249,-159.25,0.000316,14]
[400276627,1767251443258,-1200.0,0.00031642,7]
[400276628,1767251443267,-163.0,0.00031644,14]
[400276629,1767251443276,-1200.0,0.00031656,7]
[400276630,1767251443286,-1200.0,0.0003178,7]
[400276631,1767251443295,-1200.0,0.00031807,7]
[400276632,1767251443305,-200.80728227,0.000319,120]
[400276633,1767251443314,-161.57990308,0.000319,120]
[400276634,1767251443323,-181.86492436,0.000319,120]
[400276635,1767251443333,-163.54107835,0.000319,120]
[400276636,1767251443343,-208.62713506,0.000319,120]
[400276637,1767251443352,-182.69083928,0.000319,120]
[400276638,1767251443362,-194.43091559,0.000319,120]
[400276639,1767251443371,-1913.60579622,0.000319,120]
[400276640,1767251443380,-162.59864532,0.000319,120]
[400276641,1767251443390,-183.86417209,0.000319,120]
[400276642,1767251443405,-1019.67877753,0.00032,7]
[400276643,1767251443414,-1200.0,0.0003204,7]
[400276644,1767251443424,-526.8,0.00032054,32]
[400276645,1767251443433,-500.0,0.0003206,7]
[400276646,1767251443443,-2036.99644226,0.00032084,7]
[400276647,1767251443452,-500.0,0.00032086,7]